bitfinex/quotes_ETHUSD_20250511
["timestamp","ask_amount","ask_price","bid_price","bid_amount"]
[1746921985021,3.86111506,2590.0,2587.6,9.259]
[1746921985313,3.86111506,2590.0,2586.4,7.02686578]
[1746921985314,3.86235343,2589.1,2586.4,8.18523178]
[1746921985520,3.8619506,2589.4,2586.9,9.258]
[1746921985686,8.0,2590.0,2585.7,7.02686578]
[1746921985867,8.0,2590.4,2585.9,1.90920955]
[1746921986068,13.887,2590.5,2586.4,7.02686578]
[1746921986286,13.887,2590.5,2587.1,7.02686578]
[1746921986621,0.55,2590.4,2587.3,0.55]
[1746921986770,0.55,2590.4,2587.4,8.0]
[1746921986972,0.55,2590.4,2587.2,0.70268658]
[1746921987172,0.55,2590.4,2587.3,9.258]
[1746921987373,8.0,2590.0,2587.2,0.70268658]
[1746921987607,0.55,2589.8,2587.3,0.0386322]
[1746921987817,0.8,2589.9,2587.0,9.258]
[1746921988113,3.85981604,2590.8,2587.4,0.03862979]
[1746921988322,0.7997,2591.8,2587.4,0.03862979]
[1746921988323,3.86106085,2590.0,2587.4,0.03862979]
[1746921988619,8.0,2591.5,2587.3,0.55]
[1746921988771,1.23743223,2591.4,2587.7,0.55]
[1746921988973,0.51568116,2591.6,2587.9,8.0]
[1746921989201,3.86066167,2590.3,2588.1,0.55]
[1746921989402,3.86055669,2590.3,2587.4,0.75768658]
[1746921989586,8.7997,2590.1,2585.7,1.158657]
[1746921989908,3.86270429,2588.9,2585.6,0.20152251]
[1746921990111,0.55,2588.6,2585.6,0.20152251]
[1746921990282,13.89,2588.8,2585.7,7.02686578]
[1746921990617,13.89,2588.8,2585.6,0.20152251]
[1746921990618,0.55,2589.8,2586.6,8.0]
[1746921990818,0.981,2589.7,2586.7,1.50268658]
[1746921991019,13.89,2590.0,2586.9,8.0]
[1746921991185,13.89,2590.0,2586.7,1.50268658]
[1746921991186,0.55,2589.5,2586.7,1.50268658]
[1746921991381,9.263,2589.6,2586.8,0.03863934]
[1746921991583,0.55,2587.5,2585.0,9.263]
[1746921991810,0.55,2586.9,2585.0,9.263]
[1746921992125,3.86632182,2586.5,2585.0,9.263]
[1746921992286,8.55,2587.6,2585.0,9.263]
[1746921992287,13.895,2587.7,2585.1,0.03867086]
[1746921992480,0.55,2587.5,2585.1,0.93016709]
[1746921992793,0.55,2587.5,2585.1,0.96883674]
[1746921993106,0.55,2586.9,2585.1,8.93016709]
[1746921993307,0.55,2586.7,2585.1,0.93016709]
[1746921993522,0.55,2587.5,2585.1,0.93016709]
[1746921993694,0.55,2587.5,2585.2,1.05798496]
[1746921993892,1.3895,2587.6,2585.2,1.05798081]
[1746921994093,0.55,2587.4,2585.2,1.05798081]
[1746921994298,0.55,2587.2,2584.6,0.20171161]
[1746921994503,0.55,2585.1,2582.3,7.02686578]
[1746921994685,0.55,2585.1,2582.6,9.46879643]
[1746921994883,13.9,2585.2,2583.0,7.02686578]
[1746921995083,4.83847595,2587.3,2585.2,2.635705]
[1746921995084,13.9,2587.1,2585.2,2.635705]
[1746921995338,3.86548125,2587.0,2584.6,9.267]
[1746921995634,13.9,2587.1,2584.6,9.267]
[1746921995829,8.0,2586.8,2583.3,9.267]
[1746921996130,3.86917634,2584.6,2583.3,9.267]
[1746921996297,0.55,2584.5,2582.2,7.02686578]
[1746921996622,0.55,2584.5,2582.7,9.267]
[1746921996808,13.9,2584.6,2582.7,9.267]
[1746921997024,13.9,2584.6,2582.8,0.03870291]
[1746921997025,0.55,2584.5,2582.8,0.03870291]
[1746921997199,0.55,2584.5,2582.4,9.267]
[1746921997398,4.41924375,2584.5,2582.4,9.267]
[1746921997587,0.55,2585.6,2582.4,9.267]
[1746921997787,3.86802305,2585.3,2582.4,9.267]
[1746921998097,0.55,2584.4,2582.4,9.267]
[1746921998301,17.77484744,2585.5,2582.8,2.48736356]
[1746921998500,13.907,2585.5,2583.7,9.271]
[1746921998725,13.907,2585.5,2583.8,8.01]
[1746921998893,13.907,2585.5,2583.9,1.7281]
[1746921999088,0.55,2585.3,2583.9,1.7281]
[1746921999343,13.907,2585.5,2584.0,0.03869472]
[1746921999492,13.907,2585.5,2583.9,1.7281]
[1746921999493,13.907,2585.5,2584.1,0.03868668]
[1746921999691,13.907,2586.7,2584.2,8.55]
[1746921999904,13.907,2586.7,2584.4,0.55]
[1746922000103,13.907,2586.7,2584.6,0.55]
[1746922000431,13.907,2586.7,2584.7,9.271]
[1746922000587,13.907,2586.7,2584.8,8.0]
[1746922001197,13.907,2586.7,2584.9,0.55]
[1746922001399,13.907,2586.7,2585.0,0.855]
[1746922001891,17.77306197,2586.7,2585.0,0.855]
[1746922002094,17.77550364,2587.7,2585.0,0.855]
[1746922002392,13.911,2587.7,2585.1,0.58866878]
[1746922002600,3.86288238,2588.8,2585.8,0.55]
[1746922002909,0.3528924,2588.7,2587.1,8.55]
[1746922003105,0.3528924,2588.7,2587.4,0.55]
[1746922003306,0.3528924,2588.7,2587.5,0.03862379]
[1746922003632,0.3528924,2588.7,2587.6,9.274]
[1746922003828,0.3528924,2588.7,2587.7,0.9274]
[1746922004027,3.86094946,2590.1,2587.8,0.55]
[1746922004235,13.911,2591.8,2588.1,0.55]
[1746922004530,13.911,2591.8,2588.2,0.55]
[1746922004836,17.76941152,2591.8,2588.4,0.55]
[1746922004987,2.12942262,2591.7,2588.7,0.55]
[1746922005190,2.12942262,2591.7,2588.9,0.55]
[1746922005433,2.12942262,2591.7,2588.5,13.911]
[1746922005434,0.35248147,2591.7,2589.5,8.0]
[1746922005659,13.911,2591.8,2589.6,0.58859342]
[1746922005827,13.911,2591.8,2589.6,0.53859371]
[1746922006158,13.911,2592.9,2590.1,7.02686578]
[1746922006323,0.03859371,2592.8,2590.2,8.03858018]
[1746922006522,0.42813049,2592.8,2590.4,8.0]
[1746922006823,0.03859371,2593.6,2590.4,8.0]
[1746922007025,3.85633944,2593.2,2590.5,0.03857741]
[1746922007226,0.03859371,2593.1,2590.5,0.03857741]
[1746922007429,0.03859371,2593.3,2590.9,8.0]
[1746922007653,13.904,2593.7,2591.0,1.91781875]
[1746922007965,1.42899371,2593.6,2591.2,0.55]
[1746922008113,3.85579332,2593.5,2591.2,8.0]
[1746922008312,0.55,2591.5,2590.3,1.69876052]
[1746922008623,3.85892986,2591.4,2589.3,9.269]
[1746922008814,0.55,2590.9,2589.3,9.269]
[1746922009012,0.03859371,2591.3,2589.3,9.269]
[1746922009013,0.55,2590.7,2589.3,9.269]
[1746922009234,0.03859371,2591.2,2590.1,0.03860709]
[1746922009437,0.55,2590.5,2589.3,9.269]
[1746922009644,0.03859371,2591.3,2590.1,0.03860864]
[1746922009831,13.898,2592.5,2589.7,8.55]
[1746922010031,1.42839371,2592.4,2590.2,0.55]
[1746922010223,1.42839371,2592.4,2590.0,0.51]
[1746922010429,1.42839371,2592.4,2590.1,0.03859044]
[1746922010653,1.42839371,2592.4,2590.2,0.55]
[1746922011043,1.42839371,2592.4,2590.1,0.55]
[1746922011239,3.85798635,2592.1,2590.0,0.51]
[1746922011457,0.55,2591.9,2590.1,0.03859332]
[1746922011654,0.03859371,2591.8,2590.0,0.51]
[1746922011863,0.03859371,2591.8,2590.1,0.03859231]
[1746922011864,0.55,2591.7,2590.1,0.03859231]
[1746922012026,0.55,2591.7,2590.0,0.51]
[1746922012027,0.03859371,2592.2,2590.3,0.55]
[1746922012354,0.03859371,2592.4,2590.1,0.55]
[1746922012551,1.43225308,2592.4,2590.3,0.55]
[1746922012753,0.03859371,2592.4,2590.5,0.55]
[1746922012910,0.03859371,2592.4,2590.7,8.0]
[1746922013114,0.03859371,2592.4,2590.8,0.03858043]
[1746922013328,0.03859371,2592.4,2590.7,8.0]
[1746922013529,13.894,2593.7,2590.8,0.55]
[1746922013748,1.42799371,2593.6,2590.9,1.04629703]
[1746922013952,1.42799371,2593.6,2591.0,8.58857483]
[1746922014154,1.42799371,2593.6,2591.2,2.52422212]
[1746922014457,1.42799371,2593.6,2591.4,0.55]
[1746922014874,1.42799371,2593.6,2591.7,8.0]
[1746922015031,0.03859371,2593.6,2591.8,1.63930099]
[1746922015370,0.03859371,2593.6,2592.0,8.0]
[1746922015530,13.894,2593.7,2592.1,0.03856365]
[1746922015720,0.03859371,2593.6,2592.0,8.0]
[1746922015915,0.823,2595.0,2592.0,8.0]
[1746922015916,13.888,2594.5,2592.2,2.53781457]
[1746922016221,0.03859371,2594.4,2592.4,8.55]
[1746922016574,0.00202291,2595.3,2592.6,0.55]
[1746922016752,0.04061662,2595.3,2592.6,2.50892767]
[1746922017053,0.04061662,2595.3,2592.5,0.55]
[1746922017254,0.04061662,2595.3,2593.3,1.93855294]
[1746922017467,0.00202291,2595.3,2593.5,8.0]
[1746922017649,0.04061662,2595.3,2593.6,1.76443913]
[1746922017965,0.04061662,2595.3,2592.6,9.259]
[1746922018161,0.04061662,2595.3,2592.7,8.0]
[1746922018162,0.55,2595.2,2592.7,8.0]
[1746922018468,0.55,2595.2,2591.5,10.24]
[1746922018469,0.55,2594.9,2592.5,9.254]
[1746922018618,0.55,2594.7,2592.6,8.03856275]
[1746922018819,0.55,2594.2,2592.7,1.09925053]
[1746922019020,0.55,2594.0,2592.5,9.254]
[1746922019256,0.55,2593.8,2592.6,8.0]
[1746922019461,0.03859371,2594.2,2592.6,8.03855856]
[1746922019771,0.55,2594.1,2592.6,8.0]
[1746922019919,0.55,2593.9,2592.6,8.0]
[1746922020237,0.55,2593.7,2591.8,9.254]
[1746922020444,0.55,2593.3,2590.5,7.02686578]
[1746922020745,0.55,2592.7,2590.6,0.03857658]
[1746922020920,0.03859371,2593.2,2590.0,0.51]
[1746922020921,3.85770492,2592.3,2590.0,0.51]
[1746922021126,0.55,2592.0,2590.1,0.9764]
[1746922021389,3.85872062,2591.6,2589.3,2.45901767]
[1746922021535,0.03859371,2591.5,2589.3,2.45901767]
[1746922021719,0.8328,2592.3,2589.4,1.96571591]
[1746922021720,0.03859371,2591.9,2589.4,1.96571591]
[1746922021918,0.03859371,2591.9,2589.3,2.74944072]
[1746922022148,0.03859371,2592.2,2589.4,9.253]
[1746922022464,0.03859371,2592.2,2589.5,1.20024407]
[1746922022645,0.03859371,2592.2,2589.6,9.29159719]
[1746922022852,0.03859371,2592.2,2589.8,0.55]
[1746922023075,0.03859371,2592.2,2589.9,1.97302074]
[1746922023369,0.03859371,2592.5,2590.4,8.55]
[1746922023520,0.03859371,2592.9,2590.5,1.05017342]
[1746922023725,0.04079814,2590.9,2590.3,0.55]
[1746922023921,0.03859371,2592.9,2591.0,2.46781875]
[1746922024162,0.03859371,2592.9,2591.2,0.55]
[1746922024323,0.03859371,2593.1,2591.3,8.0]
[1746922024521,13.879,2593.2,2591.6,9.95741017]
[1746922024772,0.8328,2593.6,2591.6,9.95741017]
[1746922024773,13.88,2594.3,2592.2,1.98781457]
[1746922025064,0.03859371,2594.2,2591.7,0.55]
[1746922025227,0.03859371,2594.2,2591.6,8.0]
[1746922025422,0.55,2593.2,2591.4,0.855]
[1746922025624,0.55,2593.2,2591.0,1.91781875]
[1746922025625,0.03859371,2593.1,2591.0,0.55]
[1746922025879,0.03859371,2593.9,2591.5,0.55]
[1746922026027,0.03859371,2593.9,2592.2,0.55]
[1746922026226,0.03859371,2594.2,2592.5,9.95584855]
[1746922026445,0.03859371,2594.2,2592.6,1.95892767]
[1746922026631,0.83482291,2595.3,2592.9,0.55]
[1746922026956,0.03859371,2595.2,2592.9,0.2958553]
[1746922027159,0.03859371,2595.2,2593.2,9.95242181]
[1746922027379,0.03859371,2595.2,2592.7,0.25089277]
[1746922027380,0.03859371,2595.2,2592.9,8.0]
[1746922027525,0.03859371,2595.2,2593.2,8.0]
[1746922027856,0.00202291,2595.3,2593.3,0.855]
[1746922028179,0.8328,2595.2,2592.5,9.251]
[1746922028376,0.58859371,2595.1,2592.6,8.0]
[1746922028536,0.03859371,2595.1,2592.7,0.03855755]
[1746922028733,0.03859371,2595.1,2593.0,0.55]
[1746922028948,0.03859371,2595.1,2593.1,0.855]
[1746922029149,0.03859371,2595.1,2593.2,0.0385472]
[1746922029380,0.03859371,2595.1,2593.3,0.03854921]
[1746922029556,0.03859371,2595.1,2593.1,7.98854921]
[1746922029761,0.55,2595.0,2593.1,7.98854921]
[1746922029958,0.04818056,2594.9,2593.1,7.98854921]
[1746922030184,0.04818056,2594.9,2593.3,0.55]
[1746922030343,0.04817631,2595.1,2593.2,1.72395492]
[1746922030951,0.04817631,2595.1,2593.1,7.98854921]
[1746922031268,0.59817631,2595.1,2593.2,0.55]
[1746922031484,0.04817631,2595.1,2593.4,0.55]
[1746922031788,0.55,2595.0,2593.5,8.0]
[1746922031947,0.55,2594.8,2592.2,7.02686578]
[1746922032147,0.55,2594.6,2592.5,9.25]
[1746922032385,0.55,2594.4,2592.6,8.0]
[1746922032559,0.55,2594.2,2592.6,8.0]
[1746922032759,0.04819735,2594.4,2592.7,0.55]
[1746922032960,0.8063,2594.9,2592.8,8.0]
[1746922033179,0.04818201,2594.8,2592.8,14.12]
[1746922033382,0.55,2594.4,2592.8,8.0]
[1746922033689,0.55,2594.2,2592.9,0.01925307]
[1746922033848,0.55,2594.0,2592.0,9.25]
[1746922034050,0.55,2593.6,2592.0,9.25]
[1746922034281,0.04820782,2593.5,2592.1,0.01927272]
[1746922034482,0.04820586,2594.0,2592.2,1.98781457]
[1746922034650,0.04819262,2594.0,2592.4,0.55]
[1746922034850,13.874,2594.1,2592.4,2.46946907]
[1746922035155,13.874,2594.1,2592.5,0.55]
[1746922035423,0.55,2593.9,2592.3,8.20070873]
[1746922035722,0.55,2593.7,2592.0,9.25]
[1746922035907,0.04820552,2593.6,2592.0,9.25]
[1746922036119,0.04820552,2593.6,2592.1,0.01926811]
[1746922036399,0.55,2593.7,2592.0,9.25]
[1746922036573,0.55,2593.5,2592.1,8.0]
[1746922036775,0.04820837,2593.4,2592.1,9.725]
[1746922036982,0.55,2593.3,2592.0,9.25]
[1746922037204,1.3054,2593.1,2591.1,9.199]
[1746922037510,1.3054,2593.1,2590.6,7.02686578]
[1746922037511,0.55,2592.9,2590.9,9.197]
[1746922037708,0.55,2592.7,2591.0,0.01931707]
[1746922037994,0.55,2592.3,2590.3,9.181]
[1746922038298,0.55,2592.1,2590.4,0.93743808]
[1746922038464,0.55,2591.9,2590.4,0.9181]
[1746922038655,0.04823606,2591.8,2590.5,0.0193292]
[1746922038852,0.55,2592.2,2590.4,0.9181]
[1746922039054,0.55,2592.0,2590.2,9.166]
[1746922039350,0.55,2591.6,2589.6,0.01935214]
[1746922039552,0.55,2591.4,2589.6,0.01935214]
[1746922039752,0.55,2591.0,2588.5,7.02686578]
[1746922039952,0.7562,2591.1,2587.9,0.20115577]
[1746922039953,0.55,2590.8,2588.8,9.099]
[1746922040153,0.55,2590.6,2588.9,0.9099]
[1746922040455,0.55,2590.4,2588.9,0.9099]
[1746922040796,0.55,2590.2,2588.9,0.9099]
[1746922041088,0.55,2589.8,2588.1,0.20139058]
[1746922041297,0.55,2589.6,2588.1,0.20139058]
[1746922041449,0.55,2589.4,2587.3,0.29062557]
[1746922041654,0.04829551,2589.3,2587.4,0.01944809]
[1746922041850,0.55,2589.5,2587.5,0.20148094]
[1746922042096,1.3062,2589.3,2587.1,1.9424819]
[1746922042253,1.3062,2589.3,2587.0,9.066]
[1746922042254,0.55,2589.1,2587.0,9.26746531]
[1746922042580,0.55,2588.7,2587.1,0.01945397]
[1746922042891,0.04830303,2588.6,2587.1,0.01946314]
[1746922043096,0.04830303,2588.6,2587.0,9.066]
[1746922043305,0.04830303,2588.6,2587.1,0.92606949]
[1746922043475,0.55,2588.5,2587.1,0.9066]
[1746922043681,0.55,2588.3,2587.2,0.01946873]
[1746922043892,0.04830732,2588.2,2587.2,0.01946873]
[1746922044065,0.04830377,2588.7,2587.2,0.01946461]
[1746922044271,0.04830377,2588.7,2587.2,1.01867107]
[1746922044469,0.55,2588.6,2587.2,1.01867107]
[1746922044807,0.55,2587.3,2584.8,1.91545524]
[1746922044969,0.0483295,2587.2,2585.6,0.29009491]
[1746922045164,0.04832669,2587.3,2585.7,1.96620782]
[1746922045385,0.8048,2588.7,2585.8,8.0]
[1746922045611,0.0483097,2588.6,2585.9,9.69930736]
[1746922045779,0.8048,2588.5,2585.9,1.69930736]
[1746922046108,0.04831829,2588.4,2585.8,0.0195]
[1746922046275,0.55,2588.3,2585.8,0.0195]
[1746922046470,0.04831178,2588.2,2585.9,1.90920955]
[1746922046664,0.55,2588.3,2586.0,0.55]
[1746922046866,0.0483075,2588.2,2586.4,1.91242861]
[1746922047104,0.8048,2588.5,2586.7,0.0195]
[1746922047312,0.8048,2589.0,2587.1,8.55]
[1746922047466,0.04829108,2588.9,2587.1,8.55]
[1746922047669,0.8048,2589.0,2587.1,8.55]
[1746922048791,0.8048,2589.7,2587.7,7.02686578]
[1746922048993,0.04827464,2589.6,2587.8,18.31768658]
[1746922049474,0.8048,2589.7,2587.8,18.31768658]
[1746922049776,0.8048,2590.3,2588.4,0.55]
[1746922050087,0.8048,2590.3,2588.5,8.0]
[1746922050290,0.8048,2590.3,2588.7,0.55]
[1746922050500,0.04826699,2591.0,2588.7,0.55]
[1746922050501,0.8048,2590.9,2588.7,0.55]
[1746922050710,0.8048,2590.9,2589.6,8.55]
[1746922050913,0.8048,2590.9,2589.8,8.55]
[1746922051114,0.8048,2590.9,2589.8,10.49179806]
[1746922051287,0.8048,2590.9,2590.0,8.55]
[1746922051995,0.8048,2591.9,2590.3,0.55]
[1746922052312,0.8048,2591.9,2590.6,0.55]
[1746922052513,0.8048,2591.9,2590.8,0.55]
[1746922052679,0.8048,2592.5,2590.8,0.55]
[1746922052879,0.8048,2592.5,2591.0,10.46781875]
[1746922053083,0.8048,2592.5,2591.2,8.55]
[1746922053414,0.8048,2592.5,2591.3,0.55]
[1746922054699,0.8048,2592.5,2591.3,2.48560906]
[1746922054900,0.8048,2592.5,2591.2,8.0]
[1746922055227,0.8048,2592.5,2591.2,9.6939]
[1746922055429,0.04822397,2592.4,2591.2,8.0]
[1746922055721,0.8048,2592.5,2591.3,0.55]
[1746922056085,0.8125,2593.0,2591.5,0.55]
[1746922056286,0.8125,2593.0,2591.7,0.55]
[1746922056503,0.8125,2593.0,2591.8,0.25074102]
[1746922056705,0.8125,2594.0,2591.9,0.55]
[1746922056928,0.0481985,2593.9,2592.1,0.55]
[1746922057229,0.8125,2594.0,2592.3,10.50133889]
[1746922057379,0.8125,2594.0,2592.5,8.55]
[1746922057583,0.8125,2594.0,2593.1,0.55]
[1746922057883,0.8125,2594.0,2592.8,0.55]
[1746922058237,0.8125,2594.0,2592.7,2.47788865]
[1746922058788,0.8125,2594.0,2592.7,0.55]
[1746922059189,0.8125,2594.0,2592.5,8.0]
[1746922059442,0.8125,2594.0,2592.6,8.8]
[1746922059732,0.8125,2594.0,2592.7,0.55]
[1746922059933,0.7999,2594.6,2593.0,0.0195]
[1746922060234,0.00202291,2595.5,2593.3,1.93855294]
[1746922060235,0.7999,2595.2,2593.3,1.93855294]
[1746922060391,0.7999,2595.2,2593.1,1.93469978]
[1746922060392,0.04817456,2595.1,2593.1,1.93469978]
[1746922060590,0.04817456,2595.1,2593.2,0.99541998]
[1746922060788,0.55,2595.0,2593.4,8.0]
[1746922061029,0.55,2595.0,2593.2,0.99541998]
[1746922061030,0.55,2594.7,2592.7,8.613]
[1746922061212,0.55,2594.5,2592.7,8.613]
[1746922061390,0.55,2593.8,2591.7,8.614]
[1746922061596,0.55,2593.4,2591.7,8.614]
[1746922061793,0.55,2593.2,2591.8,0.8614]
[1746922062048,0.04821355,2593.1,2591.7,8.90629075]
[1746922062226,0.84811315,2593.5,2591.7,8.90629075]
[1746922062537,0.7999,2593.5,2592.0,1.9931209]
[1746922062695,0.7999,2593.5,2592.4,1.91946907]
[1746922062890,0.7999,2593.5,2592.7,1.92788865]
[1746922063097,0.7999,2593.5,2592.8,0.99278887]
[1746922063440,0.7999,2593.5,2592.2,8.551]
[1746922063747,1.3499,2593.3,2591.7,1.98432452]
[1746922063946,1.3499,2593.1,2591.7,0.28509261]
[1746922064152,0.04821982,2593.0,2591.7,0.28509261]
[1746922064297,0.04821982,2593.0,2591.1,1.96079426]
[1746922064641,0.04821982,2593.0,2591.2,18.19207943]
[1746922064999,0.04821982,2593.0,2591.2,26.70707943]
[1746922065000,0.55,2592.9,2591.2,26.70707943]
[1746922065194,0.55,2592.7,2591.3,8.515]
[1746922065433,1.33,2592.5,2591.3,8.515]
[1746922065635,0.55,2592.3,2591.3,8.515]
[1746922065854,0.55,2592.1,2591.3,8.515]
[1746922066054,0.04823107,2592.0,2591.3,8.515]
[1746922066359,0.78,2591.8,2590.7,8.486]
[1746922066660,0.78,2591.8,2590.8,8.8486]
[1746922066960,0.78,2591.8,2590.9,9.90031608]
[1746922067124,0.78,2591.8,2590.8,6.9686]
[1746922067454,0.78,2591.8,2590.9,9.90031608]
[1746922067659,0.78,2592.4,2591.2,0.55]
[1746922067824,0.78,2592.4,2591.4,8.0]
[1746922068221,0.55,2592.2,2591.4,8.0]
[1746922068414,0.55,2592.0,2590.8,8.0]
[1746922068763,0.78,2592.1,2590.9,6.12]
[1746922068931,0.78,2592.1,2591.0,8.0]
[1746922069128,0.78,2592.1,2591.0,9.91781875]
[1746922069366,0.78,2592.1,2591.0,8.0]
[1746922069528,0.59822791,2592.0,2590.2,6.12]
[1746922069712,0.55,2591.8,2590.2,1.4506]
[1746922070043,0.55,2591.4,2590.2,1.4506]
[1746922070212,0.55,2591.2,2590.0,8.386]
[1746922070412,0.0482471,2591.3,2590.0,8.386]
[1746922070413,0.04824839,2591.1,2590.0,8.386]
[1746922070838,0.04824839,2591.1,2590.1,8.0]
[1746922071213,0.04825029,2591.4,2590.1,9.92215926]
[1746922071651,0.789,2591.5,2590.1,8.0]
[1746922071862,0.789,2591.5,2590.2,1.6386]
[1746922072017,0.789,2591.5,2590.3,1.95173415]
[1746922072218,0.789,2591.5,2590.2,3.62433019]
[1746922072526,0.789,2591.5,2590.3,1.95173415]
[1746922072848,0.04823852,2591.4,2590.2,1.6386]
[1746922073013,0.55,2591.3,2590.0,8.386]
[1746922073237,0.789,2590.9,2588.9,8.253]
[1746922073434,0.789,2589.9,2588.4,0.20107121]
[1746922073674,0.59827556,2589.8,2588.4,0.20107121]
[1746922073874,4.41170196,2589.6,2588.4,0.20107121]
[1746922074178,0.789,2589.3,2588.3,0.14490533]
[1746922074375,0.55,2589.1,2587.9,10.76984522]
[1746922074534,0.55,2588.7,2587.9,2.52484522]
[1746922074734,0.789,2588.8,2587.9,1.69154522]
[1746922074735,0.789,2588.4,2587.9,1.69154522]
[1746922074970,0.55,2588.2,2587.1,3.28229879]
[1746922075131,0.83731468,2588.1,2587.1,3.28229879]
[1746922075336,0.55,2588.0,2587.1,3.28229879]
[1746922075639,0.789,2588.1,2587.2,0.01063831]
[1746922076050,0.789,2588.1,2587.2,8.0]
[1746922076281,0.789,2588.1,2586.8,8.204]
[1746922076483,0.04830194,2588.0,2586.8,8.204]
[1746922076774,0.789,2588.1,2586.9,0.01063831]
[1746922076997,0.789,2589.3,2587.0,1.9523137]
[1746922077180,0.04828877,2589.2,2587.3,1.98107057]
[1746922077380,0.04828877,2589.2,2587.3,9.98107057]
[1746922077583,0.04828877,2589.2,2587.8,1.92515842]
[1746922077766,0.04828877,2589.2,2587.4,0.99810706]
[1746922077950,0.04828877,2589.2,2587.5,2.51704566]
[1746922078139,0.04828877,2589.2,2587.3,0.55]
[1746922078336,0.55,2589.1,2587.1,9.9424819]
[1746922078663,0.55,2588.5,2587.2,0.01060604]
[1746922078864,0.55,2588.1,2586.5,8.113]
[1746922079066,0.04831188,2588.0,2586.5,8.9243]
[1746922079436,0.789,2587.9,2586.5,8.9243]
[1746922079640,0.789,2587.7,2585.8,4.03975236]
[1746922079858,0.8009,2587.5,2585.9,1.90920955]
[1746922080059,0.04832304,2587.4,2585.5,8.074]
[1746922080281,0.8009,2587.3,2585.5,8.21918354]
[1746922080445,0.8009,2587.1,2585.5,8.074]
[1746922080640,8.055,2588.1,2587.8,83.78794009]
[1746922080870,8.055,2588.1,2587.8,72.81207744]
[1746922080871,13.889,2588.0,2587.8,72.81207744]
[1746922081311,3.86224855,2589.2,2587.8,72.81207744]
[1746922081511,13.895,2589.3,2587.8,72.81207744]
[1746922081512,0.03764309,2589.1,2587.9,8.0]
[1746922082216,0.03764309,2589.1,2587.8,72.81207744]
[1746922082217,0.55,2588.2,2587.8,72.81207744]
[1746922082376,0.03764309,2588.1,2587.8,72.81207744]
[1746922082571,0.03764309,2588.8,2587.9,8.0]
[1746922083000,0.55,2588.2,2587.9,8.0]
[1746922083312,0.03764309,2588.1,2587.9,8.0]
[1746922083473,3.89993048,2589.2,2587.9,8.0]
[1746922083869,3.86234796,2589.1,2587.9,8.0]
[1746922084107,0.58764309,2589.0,2587.9,8.0]
[1746922084544,0.55,2588.8,2587.9,8.0]
[1746922084820,0.03764309,2588.9,2587.9,11.89574974]
[1746922085117,0.03764309,2589.2,2587.9,12.19133521]
[1746922085271,0.03764309,2589.2,2587.9,18.31133521]
[1746922085476,13.898,2590.4,2588.1,8.0]
[1746922085673,0.03764309,2590.3,2588.2,0.03862642]
[1746922085987,0.03764309,2590.5,2588.4,0.55]
[1746922086190,0.03764309,2590.5,2589.1,1.92516305]
[1746922086405,0.03764309,2590.5,2589.2,0.03860789]
[1746922086574,0.03764309,2590.5,2589.0,16.7319]
[1746922086779,0.03764309,2590.5,2589.1,0.55]
[1746922086979,3.89661215,2591.4,2589.3,0.55]
[1746922087237,0.38966122,2591.3,2589.0,7.941]
[1746922087530,0.03764309,2591.2,2589.1,0.0386136]
[1746922087691,0.03764309,2591.2,2589.2,0.03860932]
[1746922087886,0.03764309,2591.2,2589.3,0.55]
[1746922088080,0.03764309,2591.5,2589.4,0.03860474]
[1746922088289,1.2190729,2591.5,2589.6,1.90605451]
[1746922088495,0.03764309,2591.5,2589.8,1.94179806]
[1746922088795,0.55,2591.3,2589.5,0.28472581]
[1746922089102,0.55,2591.1,2589.5,8.0]
[1746922089295,0.55,2590.9,2589.5,8.0]
[1746922089638,0.03764309,2590.8,2589.6,0.03860926]
[1746922090215,0.55,2591.1,2589.6,0.03860926]
[1746922090393,0.03764309,2591.0,2589.5,8.0]
[1746922090593,0.03764309,2591.0,2589.6,0.03860519]
[1746922090788,0.03764309,2591.8,2589.6,0.03860519]
[1746922091018,5.1183367,2591.7,2589.5,8.0]
[1746922091215,0.55324107,2591.6,2589.7,0.55]
[1746922091526,0.03764309,2591.6,2589.8,0.55]
[1746922091729,0.03764309,2591.9,2589.9,0.03859643]
[1746922092047,0.03764309,2591.9,2589.8,0.55]
[1746922092331,0.03764309,2591.9,2589.9,0.7546]
[1746922092786,0.55,2591.8,2589.7,14.12]
[1746922092991,0.55,2591.6,2589.4,0.7546]
[1746922093223,0.55,2591.2,2589.5,0.03860832]
[1746922093433,0.03764309,2591.1,2589.4,0.7546]
[1746922093738,0.03764309,2591.4,2589.5,2.0067385]
[1746922093972,0.55,2591.3,2589.5,8.0]
[1746922094241,0.55,2590.5,2588.4,0.7546]
[1746922094446,0.03764309,2590.4,2588.6,1.94475109]
[1746922094604,13.891,2590.7,2588.6,1.94475109]
[1746922094605,0.58764309,2590.6,2588.6,8.0]
[1746922094805,0.58764309,2590.6,2588.5,8.08329994]
[1746922095042,5.1183367,2590.5,2588.4,0.7546]
[1746922095250,3.86106403,2590.0,2588.3,7.703]
[1746922095417,0.58764309,2589.9,2588.3,7.703]
[1746922095763,0.58764309,2589.9,2588.4,8.03862635]
[1746922096115,0.03764309,2589.9,2588.4,8.03862635]
[1746922096421,0.03764309,2590.2,2588.5,0.55]
[1746922096620,0.55,2590.1,2588.6,6.12]
[1746922096816,0.03764309,2590.0,2588.6,6.12]